[Event "Titled Tuesday Blitz December 20 Late 2022"]
[White "Mekhitarian, Krikor Sevag"]
[Black "Zeman, Matyas"]
[WhiteFideId "2107660"]
[BlackFideId "364398"]
[WhiteElo "2604"]
[BlackElo "2254"]
[Result "1-0"]
[Round "01"]
[TimeControl "180+1"]
[Date "2022.12.21"]
[WhiteClock "0:00:14"]
[BlackClock "0:00:03"]

1. Nf3 {[%clk 0:03:00]}  Nf6 {[%clk 0:02:53]} 2. c4 {[%clk 0:02:59]}  e6 {[%clk 0:02:53]} 3. Nc3 {[%clk 0:02:59]}  d5 {[%clk 0:02:53]} 4. e3 {[%clk 0:02:59]}  Be7 {[%clk 0:02:53]} 5. b3 {[%clk 0:02:59]}  O-O {[%clk 0:02:53]} 6. Bb2 {[%clk 0:02:59]}  c5 {[%clk 0:02:54]} 7. cxd5 {[%clk 0:02:59]}  Nxd5 {[%clk 0:02:52]} 8. Nxd5 {[%clk 0:02:55]}  Qxd5 {[%clk 0:02:52]} 9. Bc4 {[%clk 0:02:55]}  Qh5 {[%clk 0:02:44]} 10. g4 {[%clk 0:02:54]}  Qg6 {[%clk 0:02:16]} 11. h4 {[%clk 0:02:52]}  Bf6 {[%clk 0:01:57]} 12. h5 {[%clk 0:02:45]}  Qe4 {[%clk 0:01:55]} 13. d3 {[%clk 0:02:22]}  Qc6 {[%clk 0:01:32]} 14. Bxf6 {[%clk 0:02:22]}  gxf6 {[%clk 0:01:33]} 15. g5 {[%clk 0:02:22]}  fxg5 {[%clk 0:01:29]} 16. Rg1 {[%clk 0:02:17]}  b5 {[%clk 0:01:03]} 17. Ne5 {[%clk 0:01:49]}  Qb7 {[%clk 0:01:02]} 18. Rxg5+ {[%clk 0:01:39]}  Kh8 {[%clk 0:01:02]} 19. Qg4 {[%clk 0:01:03]}  bxc4 {[%clk 0:01:00]} 20. Ke2 {[%clk 0:00:33]}  f6 {[%clk 0:00:53]} 21. Rg1 {[%clk 0:00:17]}  fxg5 {[%clk 0:00:53]} 22. Qxg5 {[%clk 0:00:18]}  cxd3+ {[%clk 0:00:42]} 23. Kd1 {[%clk 0:00:17]}  Nc6 {[%clk 0:00:05]} 24. Qh6 {[%clk 0:00:17]}  Rg8 {[%clk 0:00:04]} 25. Qf6+ {[%clk 0:00:15]}  Rg7 {[%clk 0:00:03]} 26. Qf8+ {[%clk 0:00:14]} 1-0


[Site "https://www.chess.com"]

[Event "Titled Tuesday Blitz December 20 Late 2022"]
[White "Melian, Juan Sebastian"]
[Black "Mesa Cruz, Juan Carlos"]
[WhiteFideId "3706575"]
[BlackFideId "6423400"]
[WhiteElo "2044"]
[BlackElo "2059"]
[Result "0-1"]
[Round "01"]
[TimeControl "180+1"]
[Date "2022.12.21"]
[WhiteClock "0:00:20"]
[BlackClock "0:00:18"]

1. e4 {[%clk 0:02:58]}  c5 {[%clk 0:02:58]} 2. Nf3 {[%clk 0:02:57]}  d6 {[%clk 0:02:58]} 3. c3 {[%clk 0:02:51]}  Nf6 {[%clk 0:02:56]} 4. Bd3 {[%clk 0:02:51]}  g6 {[%clk 0:02:55]} 5. Bc2 {[%clk 0:02:51]}  Bg7 {[%clk 0:02:55]} 6. O-O {[%clk 0:02:52]}  e5 {[%clk 0:02:50]} 7. d4 {[%clk 0:02:53]}  cxd4 {[%clk 0:02:50]} 8. cxd4 {[%clk 0:02:53]}  exd4 {[%clk 0:02:51]} 9. Nxd4 {[%clk 0:02:54]}  O-O {[%clk 0:02:51]} 10. Nc3 {[%clk 0:02:54]}  Nc6 {[%clk 0:02:50]} 11. Nde2 {[%clk 0:02:36]}  Be6 {[%clk 0:02:41]} 12. Nf4 {[%clk 0:02:35]}  Bc4 {[%clk 0:02:41]} 13. Re1 {[%clk 0:02:35]}  Rc8 {[%clk 0:02:32]} 14. Be3 {[%clk 0:02:35]}  a6 {[%clk 0:02:30]} 15. Rc1 {[%clk 0:02:19]}  h5 {[%clk 0:02:25]} 16. Nfd5 {[%clk 0:02:10]}  Nxd5 {[%clk 0:02:19]} 17. exd5 {[%clk 0:02:11]}  Ne5 {[%clk 0:02:06]} 18. h3 {[%clk 0:01:51]}  b5 {[%clk 0:01:42]} 19. a3 {[%clk 0:01:49]}  a5 {[%clk 0:01:33]} 20. Ne4 {[%clk 0:01:44]}  a4 {[%clk 0:01:20]} 21. Qd2 {[%clk 0:01:26]}  Ba2 {[%clk 0:00:40]} 22. Bh6 {[%clk 0:01:21]}  Nc4 {[%clk 0:00:36]} 23. Qf4 {[%clk 0:01:12]}  Bxb2 {[%clk 0:00:34]} 24. Bxf8 {[%clk 0:00:51]}  Qxf8 {[%clk 0:00:25]} 25. Rcd1 {[%clk 0:00:48]}  Nxa3 {[%clk 0:00:20]} 26. Bd3 {[%clk 0:00:48]}  Be5 {[%clk 0:00:19]} 27. Qf3 {[%clk 0:00:47]}  Bb3 {[%clk 0:00:19]} 28. Rd2 {[%clk 0:00:44]}  Nc2 {[%clk 0:00:19]} 29. Rc1 {[%clk 0:00:42]}  Nd4 {[%clk 0:00:19]} 30. Nf6+ {[%clk 0:00:25]}  Bxf6 {[%clk 0:00:18]} 31. Qxf6 {[%clk 0:00:26]}  Rxc1+ {[%clk 0:00:18]} 32. Kh2 {[%clk 0:00:26]}  Qg7 {[%clk 0:00:18]} 33. Qd8+ {[%clk 0:00:26]}  Kh7 {[%clk 0:00:18]} 34. Be4 {[%clk 0:00:26]}  Qe5+ {[%clk 0:00:18]} 35. g3 {[%clk 0:00:26]}  Qxe4 {[%clk 0:00:18]} 36. f3 {[%clk 0:00:23]}  Qe1 {[%clk 0:00:18]} 37. g4 {[%clk 0:00:20]}  Qg1# {[%clk 0:00:18]} 0-1


[Site "https://www.chess.com"]

[Event "Titled Tuesday Blitz December 20 Late 2022"]
[White "Milosevic, Milos"]
[Black "Floresvillar Gonzalez, Luis Migu"]
[WhiteFideId "964875"]
[BlackFideId "5100542"]
[WhiteElo "2314"]
[BlackElo "2040"]
[Result "1/2-1/2"]
[Round "01"]
[TimeControl "180+1"]
[Date "2022.12.21"]
[WhiteClock "0:00:08"]
[BlackClock "0:00:45"]

1. d4 {[%clk 0:03:00]}  d5 {[%clk 0:02:57]} 2. Bf4 {[%clk 0:02:49]}  c6 {[%clk 0:02:56]} 3. Nd2 {[%clk 0:02:45]}  Bf5 {[%clk 0:02:56]} 4. e3 {[%clk 0:02:43]}  e6 {[%clk 0:02:56]} 5. c4 {[%clk 0:02:42]}  Bd6 {[%clk 0:02:55]} 6. Bg3 {[%clk 0:02:41]}  Nf6 {[%clk 0:02:50]} 7. Ngf3 {[%clk 0:02:41]}  O-O {[%clk 0:02:49]} 8. Be2 {[%clk 0:02:40]}  Qc7 {[%clk 0:02:45]} 9. c5 {[%clk 0:02:37]}  Bxg3 {[%clk 0:02:44]} 10. hxg3 {[%clk 0:02:37]}  h6 {[%clk 0:02:44]} 11. Ne5 {[%clk 0:02:36]}  Nbd7 {[%clk 0:02:42]} 12. g4 {[%clk 0:02:27]}  Bh7 {[%clk 0:02:26]} 13. f4 {[%clk 0:02:23]}  Nxe5 {[%clk 0:02:21]} 14. fxe5 {[%clk 0:02:15]}  Ne4 {[%clk 0:02:21]} 15. Nxe4 {[%clk 0:02:00]}  Bxe4 {[%clk 0:02:19]} 16. Qd2 {[%clk 0:01:33]}  f6 {[%clk 0:02:18]} 17. Qc3 {[%clk 0:01:27]}  fxe5 {[%clk 0:02:15]} 18. dxe5 {[%clk 0:01:28]}  b6 {[%clk 0:02:06]} 19. g5 {[%clk 0:00:41]}  hxg5 {[%clk 0:02:04]} 20. Bd3 {[%clk 0:00:37]}  bxc5 {[%clk 0:01:53]} 21. Bxe4 {[%clk 0:00:37]}  dxe4 {[%clk 0:01:53]} 22. Qxc5 {[%clk 0:00:35]}  Rf5 {[%clk 0:01:49]} 23. O-O-O {[%clk 0:00:32]}  Qxe5 {[%clk 0:01:34]} 24. Qxc6 {[%clk 0:00:30]}  Qc5+ {[%clk 0:01:33]} 25. Qxc5 {[%clk 0:00:30]}  Rxc5+ {[%clk 0:01:33]} 26. Kb1 {[%clk 0:00:31]}  Rac8 {[%clk 0:01:29]} 27. Rd6 {[%clk 0:00:26]}  R5c6 {[%clk 0:01:28]} 28. Rd7 {[%clk 0:00:25]}  R8c7 {[%clk 0:01:23]} 29. Rd8+ {[%clk 0:00:25]}  Kf7 {[%clk 0:01:23]} 30. Rf1+ {[%clk 0:00:25]}  Kg6 {[%clk 0:01:22]} 31. Re8 {[%clk 0:00:25]}  Rf7 {[%clk 0:01:19]} 32. Rxf7 {[%clk 0:00:10]}  Kxf7 {[%clk 0:01:19]} 33. Ra8 {[%clk 0:00:11]}  a6 {[%clk 0:01:18]} 34. b4 {[%clk 0:00:09]}  Rb6 {[%clk 0:01:16]} 35. a3 {[%clk 0:00:09]}  Kf6 {[%clk 0:01:15]} 36. Kb2 {[%clk 0:00:10]}  Kf5 {[%clk 0:01:15]} 37. Kc3 {[%clk 0:00:10]}  Kg4 {[%clk 0:01:15]} 38. Ra7 {[%clk 0:00:11]}  g6 {[%clk 0:01:13]} 39. Rg7 {[%clk 0:00:11]}  e5 {[%clk 0:01:12]} 40. Kc4 {[%clk 0:00:10]}  Rc6+ {[%clk 0:01:09]} 41. Kd5 {[%clk 0:00:10]}  Rc3 {[%clk 0:01:09]} 42. Rxg6 {[%clk 0:00:09]}  Rxa3 {[%clk 0:01:06]} 43. Kxe5 {[%clk 0:00:08]}  a5 {[%clk 0:01:06]} 44. b5 {[%clk 0:00:08]}  Rxe3 {[%clk 0:01:05]} 45. Kd4 {[%clk 0:00:07]}  Rb3 {[%clk 0:01:05]} 46. Kc4 {[%clk 0:00:07]}  Rb4+ {[%clk 0:01:04]} 47. Kc5 {[%clk 0:00:07]}  e3 {[%clk 0:01:04]} 48. Re6 {[%clk 0:00:07]}  Kf4 {[%clk 0:01:04]} 49. b6 {[%clk 0:00:07]}  g4 {[%clk 0:01:01]} 50. Kc6 {[%clk 0:00:07]}  Rb2 {[%clk 0:00:59]} 51. b7 {[%clk 0:00:07]}  a4 {[%clk 0:00:57]} 52. Kc7 {[%clk 0:00:07]}  Rxb7+ {[%clk 0:00:55]} 53. Kxb7 {[%clk 0:00:07]}  Kg3 {[%clk 0:00:54]} 54. Rxe3+ {[%clk 0:00:07]}  Kxg2 {[%clk 0:00:55]} 55. Ra3 {[%clk 0:00:07]}  g3 {[%clk 0:00:53]} 56. Kc6 {[%clk 0:00:06]}  Kf2 {[%clk 0:00:52]} 57. Ra2+ {[%clk 0:00:06]}  Kf1 {[%clk 0:00:51]} 58. Ra1+ {[%clk 0:00:06]}  Kf2 {[%clk 0:00:50]} 59. Ra2+ {[%clk 0:00:06]}  Kf3 {[%clk 0:00:48]} 60. Ra3+ {[%clk 0:00:06]}  Kf2 {[%clk 0:00:48]} 61. Rxa4 {[%clk 0:00:06]}  g2 {[%clk 0:00:48]} 62. Rf4+ {[%clk 0:00:07]}  Ke2 {[%clk 0:00:47]} 63. Rg4 {[%clk 0:00:07]}  Kf2 {[%clk 0:00:47]} 64. Rf4+ {[%clk 0:00:07]}  Ke2 {[%clk 0:00:46]} 65. Re4+ {[%clk 0:00:07]}  Kf2 {[%clk 0:00:46]} 66. Rg4 {[%clk 0:00:07]}  g1=Q {[%clk 0:00:45]} 67. Rxg1 {[%clk 0:00:08]}  Kxg1 {[%clk 0:00:45]} 1/2-1/2


[Site "https://www.chess.com"]

[Event "Titled Tuesday Blitz December 20 Late 2022"]
[White "Moksh Amit Doshi"]
[Black "Shapiro, Bryan"]
[WhiteFideId "25064967"]
[BlackFideId "2087740"]
[WhiteElo "2297"]
[BlackElo "1899"]
[Result "1-0"]
[Round "01"]
[TimeControl "180+1"]
[Date "2022.12.21"]
[WhiteClock "0:01:51"]
[BlackClock "0:01:11"]

1. d4 {[%clk 0:02:59]}  Nf6 {[%clk 0:02:59]} 2. Nf3 {[%clk 0:02:56]}  e6 {[%clk 0:02:59]} 3. Bf4 {[%clk 0:02:56]}  c5 {[%clk 0:02:59]} 4. e3 {[%clk 0:02:55]}  b6 {[%clk 0:02:52]} 5. Nc3 {[%clk 0:02:52]}  a6 {[%clk 0:02:38]} 6. d5 {[%clk 0:02:45]}  Bb7 {[%clk 0:02:35]} 7. e4 {[%clk 0:02:37]}  d6 {[%clk 0:02:31]} 8. a4 {[%clk 0:02:32]}  e5 {[%clk 0:02:17]} 9. Be3 {[%clk 0:02:31]}  g6 {[%clk 0:02:15]} 10. Nd2 {[%clk 0:02:30]}  Qd7 {[%clk 0:02:03]} 11. Be2 {[%clk 0:02:29]}  Bg7 {[%clk 0:01:56]} 12. Nc4 {[%clk 0:02:29]}  Qc7 {[%clk 0:01:56]} 13. O-O {[%clk 0:02:21]}  O-O {[%clk 0:01:56]} 14. Ra3 {[%clk 0:02:17]}  Nbd7 {[%clk 0:01:49]} 15. f4 {[%clk 0:02:14]}  Rfe8 {[%clk 0:01:44]} 16. f5 {[%clk 0:02:13]}  Rf8 {[%clk 0:01:30]} 17. Qc1 {[%clk 0:02:11]}  gxf5 {[%clk 0:01:24]} 18. Rxf5 {[%clk 0:02:11]}  Bc8 {[%clk 0:01:22]} 19. Bh6 {[%clk 0:02:09]}  Ne8 {[%clk 0:01:20]} 20. Rg5 {[%clk 0:02:06]}  Kh8 {[%clk 0:01:16]} 21. Rxg7 {[%clk 0:01:53]}  Nxg7 {[%clk 0:01:17]} 22. Qg5 {[%clk 0:01:52]}  Rg8 {[%clk 0:01:15]} 23. Nb5 {[%clk 0:01:51]}  axb5 {[%clk 0:01:11]} 24. Rg3 {[%clk 0:01:51]} 1-0


[Site "https://www.chess.com"]

[Event "Titled Tuesday Blitz December 20 Late 2022"]
[White "Nasuta, Grzegorz"]
[Black "Hansen, Torbjorn Ringdal"]
[WhiteFideId "1141686"]
[BlackFideId "1501720"]
[WhiteElo "2441"]
[BlackElo "2383"]
[Result "1-0"]
[Round "01"]
[TimeControl "180+1"]
[Date "2022.12.21"]
[WhiteClock "0:00:12"]
[BlackClock "0:01:12"]

1. e4 {[%clk 0:03:00]}  e5 {[%clk 0:03:00]} 2. Nf3 {[%clk 0:03:00]}  Nc6 {[%clk 0:03:00]} 3. Bc4 {[%clk 0:03:00]}  Nf6 {[%clk 0:02:59]} 4. d3 {[%clk 0:03:01]}  Bc5 {[%clk 0:02:57]} 5. O-O {[%clk 0:03:01]}  d6 {[%clk 0:02:56]} 6. c3 {[%clk 0:03:01]}  h6 {[%clk 0:02:52]} 7. Bb3 {[%clk 0:02:59]}  O-O {[%clk 0:02:49]} 8. h3 {[%clk 0:02:59]}  a5 {[%clk 0:02:48]} 9. Re1 {[%clk 0:02:59]}  Re8 {[%clk 0:02:45]} 10. Nbd2 {[%clk 0:02:55]}  Be6 {[%clk 0:02:44]} 11. Ba4 {[%clk 0:02:53]}  Bd7 {[%clk 0:02:42]} 12. Nf1 {[%clk 0:02:51]}  Ba7 {[%clk 0:02:31]} 13. Ng3 {[%clk 0:02:49]}  Ne7 {[%clk 0:02:31]} 14. Bc2 {[%clk 0:02:49]}  Ng6 {[%clk 0:02:26]} 15. d4 {[%clk 0:02:50]}  c6 {[%clk 0:02:17]} 16. Be3 {[%clk 0:02:50]}  Qc7 {[%clk 0:02:16]} 17. Qd2 {[%clk 0:02:50]}  Kh7 {[%clk 0:02:07]} 18. a4 {[%clk 0:02:44]}  Bb6 {[%clk 0:02:07]} 19. Rad1 {[%clk 0:02:43]}  Rad8 {[%clk 0:02:06]} 20. Qc1 {[%clk 0:02:39]}  Bc8 {[%clk 0:02:06]} 21. b3 {[%clk 0:02:19]}  Be6 {[%clk 0:02:05]} 22. c4 {[%clk 0:02:17]}  exd4 {[%clk 0:02:04]} 23. Nxd4 {[%clk 0:02:16]}  Kg8 {[%clk 0:02:00]} 24. f4 {[%clk 0:01:00]}  d5 {[%clk 0:01:44]} 25. cxd5 {[%clk 0:00:58]}  cxd5 {[%clk 0:01:41]} 26. e5 {[%clk 0:00:55]}  Ne4 {[%clk 0:01:32]} 27. Bxe4 {[%clk 0:00:52]}  Qxc1 {[%clk 0:01:31]} 28. Rxc1 {[%clk 0:00:46]}  dxe4 {[%clk 0:01:31]} 29. Nxe6 {[%clk 0:00:43]}  Bxe3+ {[%clk 0:01:26]} 30. Rxe3 {[%clk 0:00:44]}  fxe6 {[%clk 0:01:26]} 31. Rxe4 {[%clk 0:00:12]}  Rd3 {[%clk 0:01:25]} 32. Nh5 {[%clk 0:00:13]}  Rxb3 {[%clk 0:01:24]} 33. Rc7 {[%clk 0:00:13]}  Re7 {[%clk 0:01:24]} 34. Rec4 {[%clk 0:00:13]}  Rb4 {[%clk 0:01:13]} 35. Rxe7 {[%clk 0:00:13]}  Rxc4 {[%clk 0:01:12]} 36. Rxg7+ {[%clk 0:00:12]} 1-0


[Site "https://www.chess.com"]

[Event "Titled Tuesday Blitz December 20 Late 2022"]
[White "Onslow, Alfie"]
[Black "Denishev, Marat"]
[WhiteFideId "436976"]
[BlackFideId "24131563"]
[WhiteElo "2015"]
[BlackElo "2194"]
[Result "0-1"]
[Round "01"]
[TimeControl "180+1"]
[Date "2022.12.21"]
[WhiteClock "0:00:18"]
[BlackClock "0:01:46"]

1. d4 {[%clk 0:02:59]}  Nf6 {[%clk 0:02:56]} 2. c4 {[%clk 0:02:57]}  c5 {[%clk 0:02:57]} 3. d5 {[%clk 0:02:57]}  e6 {[%clk 0:02:57]} 4. Nc3 {[%clk 0:02:56]}  exd5 {[%clk 0:02:57]} 5. cxd5 {[%clk 0:02:57]}  d6 {[%clk 0:02:57]} 6. e4 {[%clk 0:02:57]}  g6 {[%clk 0:02:58]} 7. Nf3 {[%clk 0:02:56]}  Bg7 {[%clk 0:02:56]} 8. Be2 {[%clk 0:02:56]}  O-O {[%clk 0:02:56]} 9. O-O {[%clk 0:02:52]}  Bg4 {[%clk 0:02:56]} 10. Nd2 {[%clk 0:02:50]}  Bxe2 {[%clk 0:02:56]} 11. Qxe2 {[%clk 0:02:51]}  Re8 {[%clk 0:02:56]} 12. a4 {[%clk 0:02:47]}  Na6 {[%clk 0:02:53]} 13. Ra3 {[%clk 0:02:07]}  Nb4 {[%clk 0:02:53]} 14. Nc4 {[%clk 0:02:05]}  Nxe4 {[%clk 0:02:33]} 15. Nxe4 {[%clk 0:02:04]}  f5 {[%clk 0:02:33]} 16. Ncxd6 {[%clk 0:01:50]}  Qxd6 {[%clk 0:02:32]} 17. Nxd6 {[%clk 0:01:46]}  Rxe2 {[%clk 0:02:33]} 18. Nxb7 {[%clk 0:01:42]}  Nxd5 {[%clk 0:02:30]} 19. Nxc5 {[%clk 0:01:39]}  Rc8 {[%clk 0:02:23]} 20. Nd3 {[%clk 0:01:34]}  Bd4 {[%clk 0:02:19]} 21. Rb3 {[%clk 0:01:07]}  Rcc2 {[%clk 0:02:07]} 22. Rb8+ {[%clk 0:01:07]}  Kg7 {[%clk 0:02:07]} 23. Rb7+ {[%clk 0:01:07]}  Kf6 {[%clk 0:02:07]} 24. h4 {[%clk 0:00:55]}  f4 {[%clk 0:02:01]} 25. Bxf4 {[%clk 0:00:48]}  Nxf4 {[%clk 0:01:56]} 26. Nxf4 {[%clk 0:00:46]}  Rxf2 {[%clk 0:01:53]} 27. Rxf2 {[%clk 0:00:25]}  Rxf2 {[%clk 0:01:54]} 28. Nd5+ {[%clk 0:00:26]}  Ke5 {[%clk 0:01:52]} 29. Rb5 {[%clk 0:00:18]}  Rxb2+ {[%clk 0:01:46]} 0-1


[Site "https://www.chess.com"]

[Event "Titled Tuesday Blitz December 20 Late 2022"]
[White "Ozates, Tuna"]
[Black "Sarana, Alexey"]
[WhiteFideId "6354521"]
[BlackFideId "24133795"]
[WhiteElo "2151"]
[BlackElo "2708"]
[Result "0-1"]
[Round "01"]
[TimeControl "180+1"]
[Date "2022.12.20"]
[WhiteClock "0:00:05"]
[BlackClock "0:01:19"]

1. e4 {[%clk 0:02:56]}  c5 {[%clk 0:03:00]} 2. Nf3 {[%clk 0:02:56]}  d6 {[%clk 0:03:00]} 3. Bb5+ {[%clk 0:02:55]}  Bd7 {[%clk 0:03:00]} 4. Bxd7+ {[%clk 0:02:55]}  Nxd7 {[%clk 0:03:01]} 5. O-O {[%clk 0:02:55]}  Ngf6 {[%clk 0:03:01]} 6. Qe2 {[%clk 0:02:55]}  e6 {[%clk 0:03:02]} 7. b3 {[%clk 0:02:56]}  Be7 {[%clk 0:03:01]} 8. Bb2 {[%clk 0:02:57]}  O-O {[%clk 0:03:01]} 9. d4 {[%clk 0:02:57]}  cxd4 {[%clk 0:03:00]} 10. Nxd4 {[%clk 0:02:57]}  Qa5 {[%clk 0:02:59]} 11. c4 {[%clk 0:02:57]}  Rac8 {[%clk 0:02:56]} 12. Nc3 {[%clk 0:02:57]}  a6 {[%clk 0:02:56]} 13. Rac1 {[%clk 0:02:54]}  Qh5 {[%clk 0:02:56]} 14. f3 {[%clk 0:02:50]}  Rfd8 {[%clk 0:02:54]} 15. Kh1 {[%clk 0:02:50]}  Ne5 {[%clk 0:02:47]} 16. Rcd1 {[%clk 0:02:38]}  Ng6 {[%clk 0:02:45]} 17. g3 {[%clk 0:02:32]}  Qa5 {[%clk 0:02:26]} 18. f4 {[%clk 0:02:19]}  Qh5 {[%clk 0:02:14]} 19. Qxh5 {[%clk 0:01:36]}  Nxh5 {[%clk 0:02:15]} 20. f5 {[%clk 0:01:37]}  Nf8 {[%clk 0:02:15]} 21. g4 {[%clk 0:01:37]}  Nf6 {[%clk 0:02:13]} 22. g5 {[%clk 0:01:33]}  Ng4 {[%clk 0:02:13]} 23. Bc1 {[%clk 0:01:29]}  b5 {[%clk 0:02:01]} 24. Rg1 {[%clk 0:01:25]}  Nf2+ {[%clk 0:01:58]} 25. Kg2 {[%clk 0:01:22]}  Nxd1 {[%clk 0:01:59]} 26. Rxd1 {[%clk 0:01:19]}  bxc4 {[%clk 0:01:58]} 27. b4 {[%clk 0:01:19]}  d5 {[%clk 0:01:55]} 28. exd5 {[%clk 0:01:19]}  exd5 {[%clk 0:01:56]} 29. a3 {[%clk 0:01:18]}  Rd7 {[%clk 0:01:51]} 30. Rf1 {[%clk 0:01:14]}  Bd8 {[%clk 0:01:50]} 31. f6 {[%clk 0:01:10]}  Bb6 {[%clk 0:01:49]} 32. Nf5 {[%clk 0:01:07]}  gxf6 {[%clk 0:01:42]} 33. gxf6 {[%clk 0:00:58]}  Ng6 {[%clk 0:01:43]} 34. Bh6 {[%clk 0:00:56]}  Re8 {[%clk 0:01:28]} 35. Bg7 {[%clk 0:00:56]}  h5 {[%clk 0:01:28]} 36. Rf3 {[%clk 0:00:52]}  d4 {[%clk 0:01:24]} 37. Nd1 {[%clk 0:00:40]}  c3 {[%clk 0:01:22]} 38. Nf2 {[%clk 0:00:30]}  Re2 {[%clk 0:01:22]} 39. Kf1 {[%clk 0:00:26]}  Rxf2+ {[%clk 0:01:21]} 40. Rxf2 {[%clk 0:00:23]}  d3 {[%clk 0:01:21]} 41. Nh6+ {[%clk 0:00:09]}  Kh7 {[%clk 0:01:21]} 42. Nxf7 {[%clk 0:00:06]}  Rxf7 {[%clk 0:01:21]} 43. Rf5 {[%clk 0:00:05]}  c2 {[%clk 0:01:19]} 0-1


[Site "https://www.chess.com"]

[Event "Titled Tuesday Blitz December 20 Late 2022"]
[White "Pakleza, Zbigniew"]
[Black "D`Arruda, Ricardo D."]
[WhiteFideId "1119290"]
[BlackFideId "100692"]
[WhiteElo "2410"]
[BlackElo "2427"]
[Result "1-0"]
[Round "01"]
[TimeControl "180+1"]
[Date "2022.12.21"]
[WhiteClock "0:00:17"]
[BlackClock "0:00:03"]

1. d4 {[%clk 0:03:00]}  Nf6 {[%clk 0:02:59]} 2. Nf3 {[%clk 0:03:00]}  d6 {[%clk 0:02:58]} 3. Bf4 {[%clk 0:03:01]}  g6 {[%clk 0:02:58]} 4. h3 {[%clk 0:03:01]}  Bg7 {[%clk 0:02:59]} 5. e3 {[%clk 0:03:02]}  O-O {[%clk 0:02:59]} 6. Be2 {[%clk 0:03:02]}  c5 {[%clk 0:02:59]} 7. c3 {[%clk 0:03:02]}  b6 {[%clk 0:02:57]} 8. O-O {[%clk 0:03:01]}  Bb7 {[%clk 0:02:57]} 9. Nbd2 {[%clk 0:03:01]}  Nc6 {[%clk 0:02:53]} 10. Bh2 {[%clk 0:03:01]}  Qc7 {[%clk 0:02:50]} 11. a4 {[%clk 0:02:59]}  Rfe8 {[%clk 0:02:48]} 12. Nc4 {[%clk 0:02:46]}  Rad8 {[%clk 0:02:41]} 13. Qb3 {[%clk 0:02:44]}  Na5 {[%clk 0:02:07]} 14. Nxa5 {[%clk 0:02:40]}  bxa5 {[%clk 0:02:07]} 15. dxc5 {[%clk 0:02:40]}  Bxf3 {[%clk 0:02:05]} 16. Bxf3 {[%clk 0:02:16]}  Qxc5 {[%clk 0:02:04]} 17. Qb5 {[%clk 0:02:10]}  Qb6 {[%clk 0:01:52]} 18. b4 {[%clk 0:01:41]}  axb4 {[%clk 0:01:43]} 19. Qxb6 {[%clk 0:01:40]}  axb6 {[%clk 0:01:42]} 20. cxb4 {[%clk 0:01:41]}  Nd7 {[%clk 0:01:28]} 21. Ra2 {[%clk 0:01:33]}  Be5 {[%clk 0:01:21]} 22. a5 {[%clk 0:01:19]}  bxa5 {[%clk 0:01:19]} 23. bxa5 {[%clk 0:01:19]}  Bxh2+ {[%clk 0:01:18]} 24. Kxh2 {[%clk 0:01:20]}  Nc5 {[%clk 0:01:15]} 25. a6 {[%clk 0:01:13]}  d5 {[%clk 0:01:10]} 26. Rc1 {[%clk 0:01:07]}  Nd3 {[%clk 0:01:00]} 27. Rc7 {[%clk 0:01:03]}  e6 {[%clk 0:00:54]} 28. Be2 {[%clk 0:00:54]}  Ne5 {[%clk 0:00:39]} 29. Bb5 {[%clk 0:00:45]}  Rf8 {[%clk 0:00:37]} 30. a7 {[%clk 0:00:42]}  Ra8 {[%clk 0:00:16]} 31. f4 {[%clk 0:00:29]}  Nc4 {[%clk 0:00:15]} 32. Bxc4 {[%clk 0:00:29]}  dxc4 {[%clk 0:00:16]} 33. Rxc4 {[%clk 0:00:30]}  Rfd8 {[%clk 0:00:13]} 34. Rc7 {[%clk 0:00:29]}  Kg7 {[%clk 0:00:12]} 35. e4 {[%clk 0:00:27]}  h5 {[%clk 0:00:12]} 36. Rb7 {[%clk 0:00:23]}  Rdc8 {[%clk 0:00:12]} 37. Ra6 {[%clk 0:00:22]}  h4 {[%clk 0:00:11]} 38. Rxe6 {[%clk 0:00:18]}  Kg8 {[%clk 0:00:03]} 39. Ree7 {[%clk 0:00:17]} 1-0


[Site "https://www.chess.com"]

[Event "Titled Tuesday Blitz December 20 Late 2022"]
[White "Pappelis, Dimitrios"]
[Black "Nasir, Zehn"]
[WhiteFideId "4215281"]
[BlackFideId "2613239"]
[WhiteElo "2104"]
[BlackElo "1993"]
[Result "0-1"]
[Round "01"]
[TimeControl "180+1"]
[Date "2022.12.21"]
[WhiteClock "0:00:07"]
[BlackClock "0:00:40"]

1. Nf3 {[%clk 0:02:59]}  d5 {[%clk 0:02:59]} 2. e3 {[%clk 0:02:58]}  Nf6 {[%clk 0:02:59]} 3. c4 {[%clk 0:02:57]}  c6 {[%clk 0:02:59]} 4. b3 {[%clk 0:02:56]}  Bg4 {[%clk 0:02:57]} 5. Be2 {[%clk 0:02:53]}  Nbd7 {[%clk 0:02:56]} 6. Bb2 {[%clk 0:02:53]}  e6 {[%clk 0:02:57]} 7. O-O {[%clk 0:02:52]}  Bd6 {[%clk 0:02:57]} 8. d4 {[%clk 0:02:51]}  O-O {[%clk 0:02:56]} 9. Nc3 {[%clk 0:02:50]}  Ne4 {[%clk 0:02:52]} 10. Rc1 {[%clk 0:02:44]}  f5 {[%clk 0:02:36]} 11. Nxe4 {[%clk 0:02:25]}  fxe4 {[%clk 0:02:36]} 12. Ne5 {[%clk 0:02:25]}  Bxe2 {[%clk 0:02:19]} 13. Qxe2 {[%clk 0:02:25]}  Rf5 {[%clk 0:02:06]} 14. f4 {[%clk 0:02:01]}  exf3 {[%clk 0:01:58]} 15. Rxf3 {[%clk 0:02:00]}  Rxf3 {[%clk 0:01:45]} 16. Qxf3 {[%clk 0:01:58]}  Bxe5 {[%clk 0:01:42]} 17. dxe5 {[%clk 0:01:57]}  Qg5 {[%clk 0:01:35]} 18. Qf4 {[%clk 0:01:44]}  Qg6 {[%clk 0:01:28]} 19. cxd5 {[%clk 0:01:36]}  exd5 {[%clk 0:01:21]} 20. Ba3 {[%clk 0:01:22]}  Qe6 {[%clk 0:01:09]} 21. Rf1 {[%clk 0:01:18]}  h6 {[%clk 0:01:07]} 22. Qf5 {[%clk 0:01:14]}  Qxf5 {[%clk 0:00:59]} 23. Rxf5 {[%clk 0:01:15]}  Re8 {[%clk 0:00:59]} 24. Bd6 {[%clk 0:01:13]}  g6 {[%clk 0:00:55]} 25. Rf3 {[%clk 0:00:53]}  Nxe5 {[%clk 0:00:55]} 26. Bxe5 {[%clk 0:00:54]}  Rxe5 {[%clk 0:00:55]} 27. Kf2 {[%clk 0:00:54]}  Rf5 {[%clk 0:00:50]} 28. Rxf5 {[%clk 0:00:15]}  gxf5 {[%clk 0:00:51]} 29. Kf3 {[%clk 0:00:15]}  Kg7 {[%clk 0:00:51]} 30. Kf4 {[%clk 0:00:15]}  Kf6 {[%clk 0:00:51]} 31. b4 {[%clk 0:00:16]}  b6 {[%clk 0:00:50]} 32. a4 {[%clk 0:00:15]}  a5 {[%clk 0:00:44]} 33. bxa5 {[%clk 0:00:14]}  bxa5 {[%clk 0:00:45]} 34. h3 {[%clk 0:00:10]}  h5 {[%clk 0:00:43]} 35. Kf3 {[%clk 0:00:07]}  Ke5 {[%clk 0:00:40]} 0-1


[Site "https://www.chess.com"]